fUST/lending_fUST_20251014
["ID","MTS","AMOUNT","RATE_DAILY","PERIOD"]
[391198940,1760416362243,-4048.63698813,0.00019417,2]
[391198942,1760416377415,-621.31506592,0.00019613,2]
[391198943,1760416379482,-3828.73302222,0.00019613,2]
[391198944,1760416379667,-236.28184371,0.00019801,3]
[391198945,1760416386908,2342.54395556,0.00019613,2]
[391198946,1760416386931,2657.45604444,0.00019613,2]
[391198947,1760416395630,-460.10815629,0.00019801,3]
[391198949,1760416409925,999.99000003,0.00019801,2]
[391198950,1760416468046,-268.38059175,0.00019809,2]
[391198951,1760416470612,-31.61940825,0.00019809,2]
[391198952,1760416470633,-148.92948918,0.0001981,2]
[391198953,1760416572502,-330.76143456,0.00019809,2]
[391198954,1760416575134,-174.29460539,0.00019809,2]
[391198955,1760416576621,-207.65095335,0.00019809,2]
[391198956,1760416578607,-207.5115172,0.00019809,2]
[391198957,1760416580773,-279.7814895,0.00019809,2]
[391198958,1760416580794,-20.2185105,0.00019809,2]
[391198959,1760416583179,-279.7814895,0.00019809,2]
[391198960,1760416583202,-121.8787958,0.00019809,2]
[391198961,1760416584707,-28.1212042,0.00019809,2]
[391198962,1760416584729,-211.03889172,0.0001981,2]
[391198963,1760416586175,-201.55442645,0.0001981,2]
[391198964,1760416597678,1000.0,0.00018981,2]
[391198965,1760416598631,-159.28547763,0.0001981,2]
[391198966,1760416600670,-294.76986674,0.0001981,2]
[391198967,1760416617436,-235.26310056,0.0001981,2]
[391198968,1760416642336,220.69672213,0.0001971,2]
[391198969,1760416710610,151.0,0.00018,2]
[391198970,1760416711611,151.0,0.00018091,2]
[391198971,1760416711965,-500.0,0.00019809,2]
[391198972,1760416711995,-500.0,0.00019809,2]
[391198973,1760416712026,-180.28700554,0.00019809,2]
[391198974,1760416712060,-185.0,0.00019809,2]
[391198975,1760416712091,-300.0,0.00019809,2]
[391198976,1760416712595,151.0,0.00018183,2]
[391198977,1760416713766,151.0,0.00018275,2]
[391198978,1760416714614,151.0,0.00018366,2]
[391198979,1760416715655,151.0,0.00018458,2]
[391198980,1760416716641,151.0,0.0001855,2]
[391198981,1760416717637,151.0,0.00018641,2]
[391198982,1760416718675,151.0,0.00018733,2]
[391198983,1760416720514,151.0,0.00018916,2]
[391198984,1760416721489,151.0,0.00019008,2]
[391198985,1760416722484,151.0,0.000191,2]
[391198986,1760416742480,300.0,0.00019809,2]
[391198987,1760416778840,263.06,0.00030557,120]
[391198988,1760416784171,500.0,0.00019809,2]
[391198989,1760416785549,151.0,0.00018,2]
[391198990,1760416794619,500.0,0.00019809,2]
[391198991,1760416794907,500.0,0.00019809,2]
[391198992,1760416795304,500.0,0.00019809,2]
[391198993,1760416795377,500.0,0.00019809,2]
[391198994,1760416795612,500.0,0.00019809,2]
[391198995,1760416795886,500.0,0.00019809,2]
[391198996,1760416796171,500.0,0.00019809,2]
[391198997,1760416796405,500.0,0.00019809,2]
[391198998,1760416796653,500.0,0.00019809,2]
[391198999,1760416796911,500.0,0.00019809,2]
[391199000,1760416797329,500.0,0.00019809,2]
[391199001,1760416797582,500.0,0.00019809,2]
[391199002,1760416797819,500.0,0.00019809,2]
[391199003,1760416798077,500.0,0.00019809,2]
[391199004,1760416798303,500.0,0.00019809,2]
[391199005,1760416798560,500.0,0.00019809,2]
[391199006,1760416798809,310.97,0.00019809,2]
[391199007,1760416802329,134.04,0.00019809,2]
[391199008,1760416802354,165.96,0.00019809,2]
[391199009,1760416803907,500.0,0.00019809,2]
[391199010,1760416804151,500.0,0.00019809,2]
[391199011,1760416804753,500.0,0.00019809,2]
[391199012,1760416805443,500.0,0.00019809,2]
[391199013,1760416805509,500.0,0.00019809,2]
[391199014,1760416806132,500.0,0.00019809,2]
[391199015,1760416806394,500.0,0.00019809,2]
[391199016,1760416809323,-7905.37327784,0.0001981,2]
[391199017,1760416810189,500.0,0.00019809,2]
[391199018,1760416810432,500.0,0.00019809,2]
[391199019,1760416810798,500.0,0.00019809,2]
[391199020,1760416811051,500.0,0.00019809,2]
[391199021,1760416811314,230.74,0.00019809,2]
[391199022,1760416813268,500.0,0.00019809,2]
[391199023,1760416813335,-7269.27,0.0001981,2]
[391199024,1760416813961,500.0,0.00019809,2]
[391199025,1760416814227,500.0,0.00019809,2]
[391199026,1760416814819,500.0,0.00019809,2]
[391199027,1760416815066,500.0,0.00019809,2]
[391199028,1760416815320,500.0,0.00019809,2]
[391199029,1760416815574,500.0,0.00019809,2]
[391199030,1760416815817,500.0,0.00019809,2]
[391199031,1760416816066,103.31,0.00019809,2]
[391199032,1760416816088,396.69,0.00019809,2]
[391199033,1760416816302,500.0,0.00019809,2]
[391199034,1760416816545,500.0,0.00019809,2]
[391199035,1760416816791,544.27,0.00019809,2]
[391199036,1760416817450,-4455.74,0.0001981,2]
[391199037,1760416817480,-10000.01,0.0001981,2]
[391199038,1760416821421,-10000.01,0.0001981,2]
[391199039,1760416821548,-10000.01,0.0001981,2]
[391199040,1760416825499,-369.58672216,0.0001981,2]
[391199041,1760416825529,-500.0,0.0001981,2]
[391199042,1760416825559,-500.0,0.0001981,2]
[391199043,1760416825588,-500.0,0.0001981,2]
[391199044,1760416825620,-500.0,0.0001981,2]
[391199045,1760416825649,-500.0,0.0001981,2]
[391199046,1760416825677,-500.0,0.0001981,2]
[391199047,1760416825708,-500.0,0.0001981,2]
[391199048,1760416825738,-500.0,0.0001981,2]
[391199049,1760416825770,-500.0,0.0001981,2]
[391199050,1760416825883,-500.0,0.0001981,2]
[391199051,1760416825913,-500.0,0.0001981,2]
[391199052,1760416825945,-500.0,0.0001981,2]
[391199053,1760416825974,-500.0,0.0001981,2]
[391199054,1760416826004,-195.91999684,0.0001981,2]
[391199055,1760416826032,-500.0,0.0001981,2]
[391199056,1760416826063,-178.15566605,0.0001981,2]
[391199057,1760416826094,-500.0,0.0001981,2]
[391199058,1760416826363,-260.83655568,0.00019811,2]
[391199059,1760416826378,-3251.85867422,0.00019811,2]
[391199060,1760416829633,-10000.01,0.00019811,2]
[391199061,1760416829777,-10000.01,0.00019811,2]
[391199062,1760416837897,-10000.01,0.00019811,2]
[391199063,1760416838019,-10000.01,0.00019811,2]
[391199064,1760416842151,500.0,0.00019809,2]
[391199065,1760416842399,500.0,0.00019809,2]
[391199066,1760416842629,500.0,0.00019809,2]
[391199067,1760416842854,500.0,0.00019809,2]
[391199068,1760416843091,500.0,0.00019809,2]
[391199069,1760416843853,-7500.01,0.00019811,2]
[391199070,1760416843971,-500.0,0.0001981,2]
[391199071,1760416844012,-9000.01,0.00019811,2]
[391199072,1760416848802,151.0,0.00018,2]
[391199073,1760416849791,151.0,0.00018084,2]
[391199074,1760416850838,151.0,0.00018169,2]
[391199075,1760416851869,151.0,0.00018253,2]
[391199076,1760416852886,151.0,0.00018338,2]
[391199077,1760416852926,-500.0,0.0001981,2]
[391199078,1760416852959,-500.0,0.0001981,2]
[391199079,1760416852991,-423.92873627,0.0001981,2]
[391199080,1760416853157,-6397.15252746,0.00019811,2]
[391199081,1760416853187,-10000.01,0.00019811,2]
[391199082,1760416854494,151.0,0.00018423,2]
[391199083,1760416855500,151.0,0.00018507,2]
[391199085,1760416855860,164.0,8.4e-07,2]
[391199086,1760416856481,151.0,0.00018592,2]
[391199087,1760416857112,164.0,8.4e-07,2]
[391199088,1760416857541,151.0,0.00018676,2]
[391199089,1760416858559,151.0,0.00018761,2]
[391199090,1760416859543,151.0,0.00018846,2]
[391199091,1760416860696,151.0,0.0001893,2]
[391199092,1760416860960,-500.0,0.0001981,2]
[391199093,1760416860991,-500.0,0.0001981,2]
[391199094,1760416861022,-500.0,0.0001981,2]
[391199095,1760416861053,-500.0,0.0001981,2]
[391199096,1760416861089,-500.0,0.0001981,2]
[391199097,1760416861124,-500.0,0.0001981,2]
[391199098,1760416861157,-500.0,0.0001981,2]
[391199099,1760416861188,-500.0,0.0001981,2]
[391199100,1760416861219,-574.61,0.0001981,2]
[391199101,1760416861532,-1233.49,0.0001981,2]
[391199102,1760416861563,-1233.49,0.0001981,2]
[391199103,1760416861796,-1233.49,0.0001981,2]
[391199104,1760416861825,-1233.49,0.0001981,2]
[391199105,1760416861903,-1233.49,0.0001981,2]
[391199106,1760416861935,-1233.49,0.0001981,2]
[391199107,1760416862002,151.0,0.00019015,2]
[391199108,1760416862037,-1233.49,0.0001981,2]
[391199109,1760416862165,-1233.49,0.0001981,2]
[391199110,1760416862175,-2045.95,0.00019811,2]
[391199111,1760416862200,-1233.49,0.00019811,2]
[391199112,1760416862215,-7533.03,0.00019811,2]
[391199113,1760416862254,-1233.49,0.0001981,2]
[391199114,1760416862291,-8766.52,0.00019811,2]
[391199115,1760416862307,-1233.49,0.00019811,2]
[391199116,1760416862322,-7533.03,0.00019811,2]
[391199117,1760416862347,-10000.01,0.00019811,2]
[391199118,1760416862527,-1233.49,0.0001981,2]
[391199119,1760416862562,-7533.03,0.00019811,2]
[391199120,1760416862668,-300.0,0.0001981,2]
[391199121,1760416862698,-1233.49,0.0001981,2]
[391199122,1760416862750,151.0,0.000191,2]
[391199123,1760416862799,-6782.03,0.00019811,2]
[391199124,1760416865283,-1233.49,0.0001981,2]
[391199125,1760416865313,-1233.49,0.0001981,2]
[391199126,1760416865344,-1233.49,0.0001981,2]
[391199127,1760416865374,-1233.49,0.0001981,2]
[391199128,1760416865456,-132.09,0.0001981,2]
[391199130,1760416881311,-1101.4,0.0001981,2]
[391199131,1760416881341,-1233.49,0.0001981,2]
[391199132,1760416881371,-1233.49,0.0001981,2]
[391199133,1760416881401,-1233.49,0.0001981,2]
[391199134,1760416881462,-1233.49,0.0001981,2]
[391199135,1760416881495,-1233.49,0.0001981,2]
[391199136,1760416881527,-1233.49,0.0001981,2]
[391199137,1760416881557,-1233.49,0.0001981,2]
[391199138,1760416881678,-1233.53,0.0001981,2]
[391199139,1760416881791,-528.36,0.00019811,2]
[391199140,1760416881807,-7532.95,0.00019811,2]
[391199141,1760416881822,-10000.01,0.00019811,2]
[391199142,1760416881913,-10000.01,0.00019811,2]
[391199143,1760416882070,-10000.01,0.00019811,2]
[391199144,1760416882197,-10000.01,0.00019811,2]
[391199145,1760416882318,-10000.01,0.00019811,2]
[391199146,1760416882451,-2529.11104186,0.00019811,2]
[391199147,1760416882481,-500.0,0.0001991,2]
[391199148,1760416882509,-500.0,0.0001991,2]
[391199149,1760416882539,-500.0,0.0001991,2]
[391199150,1760416882567,-500.0,0.0001991,2]
[391199151,1760416882595,-441.78791628,0.0001991,2]
[391199152,1760416882791,-58.21208372,0.0001991,2]
[391199155,1760416885337,-500.0,0.0001991,2]
[391199156,1760416885367,-500.0,0.0001991,2]
[391199157,1760416885396,-590.34,0.0001991,2]
[391199158,1760416885429,-500.0,0.0001991,2]
[391199159,1760416885606,-504.46299582,0.0001991,2]
[391199160,1760416885636,-502.51814734,0.0001991,2]
[391199161,1760416885666,-501.27475594,0.0001991,2]
[391199162,1760416885703,-500.0,0.0001991,2]
[391199163,1760416885732,-500.0,0.0001991,2]
[391199164,1760416885762,-299.76020376,0.0001991,2]
[391199165,1760416885878,-203.29779428,0.0001991,2]
[391199166,1760416885911,-500.0,0.0001991,2]
[391199167,1760416885946,-500.0,0.0001991,2]
[391199168,1760416885977,-183.84,0.0001991,2]
[391199169,1760416886008,-500.0,0.0001991,2]
[391199170,1760416886277,-203.29779428,0.0001991,2]
[391199171,1760416886292,-6225.73441144,0.0001991,2]
[391199172,1760416897361,-10000.01,0.0001991,2]
[391199173,1760416897488,-10000.01,0.0001991,2]
[391199176,1760416897610,-10000.01,0.0001991,2]
[391199182,1760416913518,-10000.01,0.0001991,2]
[391199183,1760416919512,-3570.92779428,0.0001991,2]
[391199184,1760416919540,-500.0,0.00019911,2]
[391199185,1760416919599,-360.0,0.00019956,2]
[391199186,1760416919659,-1138.15441144,0.00019999,2]
[391199187,1760416921680,-270.41086936,0.00019999,2]
[391199188,1760416936650,-600.0,0.00020205,2]
[391199189,1760416936683,-300.0,0.00020205,2]
[391199190,1760416953921,500.0,0.00019809,2]
[391199191,1760416954167,500.0,0.00019809,2]
[391199192,1760416954388,500.0,0.00019809,2]
[391199193,1760416954554,500.0,0.0001981,2]
[391199194,1760416954617,500.0,0.00019809,2]
[391199195,1760416954821,500.0,0.0001981,2]
[391199196,1760416954991,-300.0,0.00020206,2]
[391199197,1760416955021,-300.0,0.00020206,2]
[391199198,1760416955050,-300.0,0.00020206,2]
[391199199,1760416955079,-300.0,0.00020206,2]
[391199200,1760416955114,-300.0,0.00020206,2]
[391199201,1760416955144,-300.0,0.00020206,2]
[391199202,1760416955175,-300.0,0.00020206,2]
[391199203,1760416955205,-300.0,0.00020206,2]
[391199204,1760416955235,-300.0,0.00020206,2]
[391199205,1760416955265,-300.0,0.00020206,2]
[391199206,1760416955294,-300.0,0.00020206,2]
[391199207,1760416955323,-300.0,0.00020206,2]
[391199208,1760416955353,-300.0,0.00020206,2]
[391199209,1760416955382,-300.0,0.00020206,2]
[391199210,1760416955411,-300.0,0.00020206,2]
[391199211,1760416955485,605.35527296,0.0001981,2]
[391199212,1760416955592,394.65472704,0.00019809,2]
[391199213,1760416955616,105.34527296,0.00019809,2]
[391199214,1760416955854,500.0,0.00019809,2]
[391199215,1760416955914,500.0,0.00019809,2]
[391199216,1760416955968,500.0,0.00019809,2]
[391199217,1760416956107,500.0,0.00019809,2]
[391199218,1760416956699,500.0,0.00019809,2]
[391199219,1760416956985,500.0,0.00019809,2]
[391199220,1760416957225,500.0,0.00019809,2]
[391199221,1760416957457,500.0,0.00019809,2]
[391199222,1760416957690,500.0,0.00019809,2]
[391199223,1760416957949,500.0,0.00019809,2]
[391199224,1760416958210,500.0,0.00019809,2]
[391199225,1760416958447,500.0,0.00019809,2]
[391199226,1760416958698,500.0,0.00019809,2]
[391199227,1760416959313,500.0,0.00019809,2]
[391199228,1760416959568,437.84833906,0.00019809,2]
[391199229,1760416972900,500.0,0.00019809,2]
[391199230,1760416973150,500.0,0.00019809,2]
[391199231,1760416973198,501.48482106,0.00019809,2]
[391199232,1760416973394,500.0,0.00019809,2]
[391199233,1760416973702,500.0,0.00019809,2]
[391199234,1760416973884,500.0,0.00019809,2]
[391199235,1760416974112,500.0,0.00019809,2]
[391199236,1760416974414,500.0,0.00019809,2]
[391199237,1760416974666,500.0,0.00019809,2]
[391199238,1760416974860,426.44,0.00019809,2]
[391199239,1760416978696,500.0,0.00019809,2]
[391199240,1760416978972,500.0,0.00019809,2]
[391199241,1760416979207,500.0,0.00019809,2]
[391199242,1760416979477,500.0,0.00019809,2]
[391199243,1760416979716,500.0,0.00019809,2]
[391199244,1760416980141,500.0,0.00019809,2]
[391199245,1760416980429,500.0,0.00019809,2]
[391199246,1760416980649,500.0,0.00019809,2]
[391199247,1760416980898,500.0,0.00019809,2]
[391199248,1760416981174,500.0,0.00019809,2]
[391199249,1760416981562,500.0,0.00019809,2]
[391199250,1760416981818,500.0,0.00019809,2]
[391199251,1760416982061,500.0,0.00019809,2]
[391199252,1760416982284,500.0,0.00019809,2]
[391199253,1760416982536,500.0,0.00019809,2]
[391199254,1760416982828,500.0,0.00019809,2]
[391199255,1760416982927,500.0,0.00019809,2]
[391199256,1760416983055,500.0,0.00019809,2]
[391199257,1760416983350,500.0,0.00019809,2]
[391199258,1760416983597,500.0,0.00019809,2]
[391199259,1760416983886,500.0,0.00019809,2]
[391199260,1760416984133,405.55354484,0.00019809,2]
[391199262,1760416991254,501.65309134,0.0001991,2]
[391199263,1760416994989,500.0,0.0001991,2]
[391199264,1760416995799,171.62370022,0.00019809,2]
[391199265,1760416998900,616.92,0.0001981,2]
[391199266,1760417000037,500.0,0.00019809,2]
[391199267,1760417000282,500.0,0.00019809,2]
[391199268,1760417000520,500.0,0.00019809,2]
[391199269,1760417000753,500.0,0.00019809,2]
[391199270,1760417000985,304.2596636,0.00019809,2]
[391199271,1760417001010,195.7403364,0.00019809,2]
[391199272,1760417001212,500.0,0.00019809,2]
[391199273,1760417001436,500.0,0.00019809,2]
[391199274,1760417001691,500.0,0.00019809,2]
[391199275,1760417001923,500.0,0.00019809,2]
[391199276,1760417002210,500.0,0.00019809,2]
[391199277,1760417002320,7304.2696636,0.00019711,2]
[391199278,1760417002342,10000.01,0.00019711,2]
[391199279,1760417002364,10000.01,0.00019711,2]
[391199280,1760417002386,10000.01,0.00019711,2]
[391199281,1760417002408,10000.01,0.00019711,2]
[391199282,1760417002430,10000.01,0.00019711,2]
[391199283,1760417002452,10000.01,0.00019711,2]
[391199284,1760417002474,10000.01,0.00019711,2]
[391199285,1760417002496,10000.01,0.00019711,2]
[391199286,1760417037510,-167.19844166,0.00019711,2]
[391199287,1760417047677,-204.0,0.0001971,2]
[391199288,1760417050029,-8134.24683988,0.00019711,2]
[391199289,1760417050139,-10000.01,0.00019711,2]
[391199290,1760417050295,-10000.01,0.00019711,2]
[391199291,1760417050415,-10000.01,0.00019711,2]
[391199292,1760417050522,-10000.01,0.00019711,2]
[391199293,1760417050658,-10000.01,0.00019711,2]
[391199294,1760417050780,-10000.01,0.00019711,2]
[391199295,1760417050897,-10000.01,0.00019711,2]
[391199296,1760417051752,-10000.01,0.00019711,2]
[391199297,1760417051898,-10000.01,0.00019711,2]
[391199299,1760417082647,-455.27781484,0.00019514,2]
[391199300,1760417085635,-307.06846758,0.00019319,2]
[391199301,1760417085914,-4150.12996598,0.00019319,2]
[391199302,1760417085950,-1699.75006804,0.00019514,2]
[391199303,1760417086038,-2844.97211712,0.00019514,2]
[391199304,1760417086068,-575.35062956,0.0001971,2]
[391199305,1760417086098,-299.54666632,0.0001971,2]
[391199306,1760417086169,-2560.271174,0.00019711,2]
[391199307,1760417086260,-10000.01,0.00019711,2]
[391199308,1760417086323,-10000.01,0.00019711,2]
[391199309,1760417086460,-10000.01,0.00019711,2]
[391199310,1760417086596,-10000.01,0.00019711,2]
[391199311,1760417086724,-10000.01,0.00019711,2]
[391199312,1760417086841,-10000.01,0.00019711,2]
[391199315,1760417094128,-10000.01,0.00019711,2]
[391199316,1760417094359,-10000.01,0.00019711,2]
[391199317,1760417094511,-10000.01,0.00019711,2]
[391199318,1760417109977,-602.75691026,0.00019709,2]
[391199319,1760417110015,-8794.49617948,0.00019711,2]
[391199320,1760417110078,-10000.01,0.00019711,2]
[391199321,1760417110223,-10000.01,0.00019711,2]
[391199322,1760417110367,-10000.01,0.00019711,2]
[391199323,1760417110491,-10000.01,0.00019711,2]
[391199324,1760417110629,-10000.01,0.00019711,2]
[391199325,1760417110777,-10000.01,0.00019711,2]
[391199326,1760417122068,-581.20949064,0.00019514,2]
[391199327,1760417122107,-8837.59101872,0.00019711,2]
[391199328,1760417122188,-10000.01,0.00019711,2]
[391199329,1760417122321,-4201.59668266,0.00019711,2]
[391199330,1760417122351,-190.03956413,0.00019808,2]
[391199331,1760417122383,-359.10223757,0.00019808,2]
[391199332,1760417122447,-498.53303128,0.00019809,2]
[391199333,1760417128277,-17.37696872,0.00019809,2]
[391199334,1760417128309,-500.0,0.00019809,2]
[391199335,1760417128338,-500.0,0.00019809,2]
[391199336,1760417128369,-500.0,0.00019809,2]
[391199337,1760417128399,-500.0,0.00019809,2]
[391199338,1760417128428,-500.0,0.00019809,2]
[391199339,1760417128457,-500.0,0.00019809,2]
[391199340,1760417128486,-500.0,0.00019809,2]
[391199341,1760417128515,-500.0,0.00019809,2]
[391199342,1760417128544,-500.0,0.00019809,2]
[391199343,1760417128574,-465.25606256,0.00019809,2]
[391199344,1760417128728,-34.74393744,0.00019809,2]
[391199345,1760417128758,-1301.77,0.00019809,2]
[391199346,1760417128787,-500.0,0.00019809,2]
[391199347,1760417128816,-1301.77,0.00019809,2]
[391199348,1760417128845,-500.0,0.00019809,2]
[391199349,1760417128875,-1301.77,0.00019809,2]
[391199350,1760417128970,-283.560955,0.00019809,2]
[391199351,1760417129001,-1301.77,0.00019809,2]
[391199352,1760417129031,-1301.77,0.00019809,2]
[391199353,1760417129061,-500.0,0.00019809,2]
[391199354,1760417129092,-1301.77,0.00019809,2]
[391199355,1760417129209,-1301.77,0.00019809,2]
[391199356,1760417129239,-1301.77,0.00019809,2]
[391199357,1760417129271,-1301.77,0.00019809,2]
[391199358,1760417129301,-887.62,0.00019809,2]
[391199359,1760417129554,-414.15,0.00019809,2]
[391199360,1760417129584,-2875.34,0.00019809,2]
[391199361,1760417129614,-1301.77,0.00019809,2]
[391199362,1760417129736,-2875.34,0.00019809,2]
[391199363,1760417129766,-1301.77,0.00019809,2]
[391199364,1760417129876,-2875.34,0.00019809,2]
[391199365,1760417129907,-500.0,0.00019809,2]
[391199366,1760417129938,-1301.77,0.00019809,2]
[391199367,1760417129969,-206.1,0.00019809,2]
[391199368,1760417130262,-233.59,0.00019809,2]
[391199369,1760417130272,-1301.77,0.00019809,2]
[391199370,1760417130281,-111.11415256,0.00019809,2]
[391199371,1760417130299,-500.0,0.00019809,2]
[391199372,1760417130313,-1301.77,0.00019809,2]
[391199373,1760417130328,-439.69,0.00019809,2]
[391199374,1760417130373,-522.76584744,0.00019809,2]
[391199375,1760417130402,-2875.34,0.00019809,2]
[391199376,1760417130434,-328.45830512,0.00019809,2]
[391199377,1760417130487,-2546.88169488,0.00019809,2]
[391199378,1760417130521,-1301.77,0.00019809,2]
[391199379,1760417130603,-1245.11169488,0.00019809,2]
[391199380,1760417130635,-1630.22830512,0.00019809,2]
[391199381,1760417130664,-1301.77,0.00019809,2]
[391199382,1760417130695,-1260.67338976,0.00019809,2]
[391199383,1760417130769,-1042.03322048,0.00019809,2]
[391199384,1760417130790,-572.63338976,0.00019809,2]
[391199385,1760417130799,-729.13661024,0.00019809,2]
[391199386,1760417130833,-572.63338976,0.00019809,2]
[391199387,1760417130867,-2875.34,0.00019809,2]
[391199388,1760417130898,-1301.77,0.00019809,2]
[391199389,1760417130981,-2875.34,0.00019809,2]
[391199390,1760417131011,-1301.77,0.00019809,2]
[391199391,1760417131129,-2875.34,0.00019809,2]
[391199392,1760417131160,-1301.77,0.00019809,2]
[391199393,1760417131237,-844.54322048,0.00019809,2]
[391199394,1760417131257,-2030.79677952,0.00019809,2]
[391199395,1760417131266,-844.54322048,0.00019809,2]
[391199396,1760417131312,-457.22677952,0.00019809,2]
[391199397,1760417131343,-2875.34,0.00019809,2]
[391199398,1760417131373,-1301.77,0.00019809,2]
[391199399,1760417131490,-1645.79,0.00019809,2]
[391199400,1760417131510,-1229.55,0.00019809,2]
[391199401,1760417131519,-72.22,0.00019809,2]
[391199402,1760417131535,-731.33644096,0.00019809,2]
[391199403,1760417132177,-498.21355904,0.00019809,2]
[391199404,1760417132211,-2875.34,0.00019809,2]
[391199405,1760417132242,-1301.8543527,0.00019809,2]
[391199406,1760417132327,-2875.34,0.00019809,2]
[391199407,1760417132358,-1373.99,0.00019809,2]
[391199408,1760417132427,-1501.35,0.00019809,2]
[391199409,1760417132437,-649.19417652,0.00019809,2]
[391199410,1760417132472,-2226.14582348,0.00019809,2]
[391199411,1760417132504,-2672.37835304,0.00019809,2]
[391199412,1760417132545,-202.96164696,0.00019809,2]
[391199413,1760417132579,-2875.34,0.00019809,2]
[391199414,1760417132611,-1373.99,0.00019809,2]
[391199415,1760417132655,-1501.35,0.00019809,2]
[391199416,1760417132710,-2875.34,0.00019809,2]
[391199417,1760417132743,-1373.99,0.00019809,2]
[391199418,1760417132781,-1501.35,0.00019809,2]
[391199419,1760417134351,-538.21,0.00019809,2]
[391199420,1760417134384,-2875.44,0.00019809,2]
[391199421,1760417134415,-500.0,0.00019809,2]
[391199422,1760417134446,-500.0,0.00019809,2]
[391199423,1760417134478,-500.0,0.00019809,2]
[391199424,1760417134575,-172.71,0.00019809,2]
[391199425,1760417134616,-327.29,0.00019809,2]
[391199426,1760417134649,-500.0,0.00019809,2]
[391199427,1760417134680,-499.99,0.00019809,2]
[391199428,1760417134858,-500.0,0.00019809,2]
[391199429,1760417134889,-500.0,0.00019809,2]
[391199430,1760417134920,-642.26,0.00019809,2]
[391199431,1760417134948,-521.82726373,0.00019809,2]
[391199432,1760417134979,-603.89,0.00019809,2]
[391199433,1760417135010,-603.89,0.00019809,2]
[391199434,1760417135108,-603.89,0.00019809,2]
[391199435,1760417135144,-603.89,0.00019809,2]
[391199436,1760417135174,-603.89,0.00019809,2]
[391199437,1760417135205,-603.89,0.00019809,2]
[391199438,1760417135236,-603.89,0.00019809,2]
[391199439,1760417135266,-603.89,0.00019809,2]
[391199440,1760417135295,-603.89,0.00019809,2]
[391199441,1760417135324,-603.89,0.00019809,2]
[391199442,1760417135366,-603.89,0.00019809,2]
[391199443,1760417135396,-603.89,0.00019809,2]
[391199444,1760417135426,-603.89,0.00019809,2]
[391199445,1760417135456,-603.89,0.00019809,2]
[391199446,1760417135486,-603.89,0.00019809,2]
[391199447,1760417135526,-603.89,0.00019809,2]
[391199448,1760417135561,-603.89,0.00019809,2]
[391199449,1760417135605,-603.89,0.00019809,2]
[391199450,1760417135690,-500.0,0.00019809,2]
[391199451,1760417135719,-603.89,0.00019809,2]
[391199452,1760417135751,-500.0,0.00019809,2]
[391199453,1760417135781,-603.89,0.00019809,2]
[391199454,1760417135809,-500.0,0.00019809,2]
[391199455,1760417135839,-603.89,0.00019809,2]
[391199456,1760417135866,-500.0,0.00019809,2]